[Event "Late-Titled-Tuesday-Blitz-January-23-2024"]
[Site "Chess.com"]
[Date "2024.01.23"]
[Round "5"]
[White "OparinGrigoriy"]
[Black "FairChess_on_YouTube"]
[Result "1/2-1/2"]
[WhiteElo "3020"]
[BlackElo "3090"]
[TimeControl "180+1"]
[EndTime "14:49:32 PST"]
[Termination "Game drawn by repetition"]

1. c4 {[%clk 0:03:00.9]} 1... e6 {[%clk 0:02:59.6]} 2. Nc3 {[%clk 0:03:00.8]}
2... d5 {[%clk 0:02:59.9]} 3. d4 {[%clk 0:03:01.4]} 3... Nf6 {[%clk 0:02:59.8]}
4. Nf3 {[%clk 0:03:01.5]} 4... a6 {[%clk 0:02:57.6]} 5. cxd5 {[%clk 0:03:01.5]}
5... exd5 {[%clk 0:02:57.9]} 6. Bg5 {[%clk 0:03:00]} 6... Be6 {[%clk 0:02:57.9]}
7. e3 {[%clk 0:02:58.8]} 7... Nbd7 {[%clk 0:02:58]} 8. h3 {[%clk 0:02:54.6]}
8... Bd6 {[%clk 0:02:57.1]} 9. Bd3 {[%clk 0:02:52.1]} 9... c6 {[%clk 0:02:55.9]}
10. Bf4 {[%clk 0:02:49.5]} 10... Nf8 {[%clk 0:02:53.3]} 11. Qc2 {[%clk
0:02:48.5]} 11... Ng6 {[%clk 0:02:52.8]} 12. Bxd6 {[%clk 0:02:48.4]} 12... Qxd6
{[%clk 0:02:52.9]} 13. a3 {[%clk 0:02:47.7]} 13... O-O {[%clk 0:02:50.7]} 14.
O-O {[%clk 0:02:46.6]} 14... Rfe8 {[%clk 0:02:47.5]} 15. b4 {[%clk 0:02:46.3]}
15... Bd7 {[%clk 0:02:37.4]} 16. Rab1 {[%clk 0:02:43.8]} 16... Re7 {[%clk
0:02:32.3]} 17. a4 {[%clk 0:02:42]} 17... Rc8 {[%clk 0:02:31.1]} 18. Rfc1 {[%clk
0:02:39.2]} 18... Be8 {[%clk 0:02:19.8]} 19. Bf5 {[%clk 0:02:36.6]} 19... Bd7
{[%clk 0:02:16.7]} 20. Bd3 {[%clk 0:02:33.3]} 20... Be8 {[%clk 0:02:16.9]} 21.
Bf5 {[%clk 0:02:28.6]} 21... Bd7 {[%clk 0:02:17]} 22. Bd3 {[%clk 0:02:29.2]}
1/2-1/2

[Event "Late-Titled-Tuesday-Blitz-January-23-2024"]
[Site "Chess.com"]
[Date "2024.01.23"]
[Round "5"]
[White "dmitrijiIM"]
[Black "FredddieCroderg"]
[Result "0-1"]
[WhiteElo "2895"]
[BlackElo "2392"]
[TimeControl "180+1"]
[EndTime "14:49:57 PST"]
[Termination "FredddieCroderg won by checkmate"]

1. d4 {[%clk 0:02:59]} 1... d5 {[%clk 0:02:55.9]} 2. c4 {[%clk 0:02:59.2]} 2...
e6 {[%clk 0:02:56]} 3. cxd5 {[%clk 0:02:58.4]} 3... exd5 {[%clk 0:02:54.5]} 4.
Nc3 {[%clk 0:02:56.3]} 4... Nf6 {[%clk 0:02:54.3]} 5. Bf4 {[%clk 0:02:55.9]}
5... Bd6 {[%clk 0:02:46.5]} 6. Bxd6 {[%clk 0:02:55.7]} 6... Qxd6 {[%clk
0:02:45.5]} 7. e3 {[%clk 0:02:56.6]} 7... O-O {[%clk 0:02:44.6]} 8. h3 {[%clk
0:02:54.8]} 8... c6 {[%clk 0:02:44.2]} 9. Bd3 {[%clk 0:02:54.9]} 9... Re8 {[%clk
0:02:39.2]} 10. Nge2 {[%clk 0:02:55.1]} 10... Nbd7 {[%clk 0:02:38]} 11. O-O
{[%clk 0:02:55]} 11... Nf8 {[%clk 0:02:37.7]} 12. Qd2 {[%clk 0:02:54.3]} 12...
Ng6 {[%clk 0:02:34.2]} 13. Rac1 {[%clk 0:02:54]} 13... Nh4 {[%clk 0:02:30]} 14.
f3 {[%clk 0:02:53.1]} 14... Nh5 {[%clk 0:02:09.5]} 15. e4 {[%clk 0:02:51]} 15...
Qg6 {[%clk 0:01:43.6]} 16. e5 {[%clk 0:02:31.3]} 16... Qxg2# {[%clk 0:01:41.2]}
0-1

[Event "Late-Titled-Tuesday-Blitz-January-23-2024"]
[Site "Chess.com"]
[Date "2024.01.23"]
[Round "5"]
[White "miraitrunks"]
[Black "Carlitus2004"]
[Result "1-0"]
[WhiteElo "2108"]
[BlackElo "2400"]
[TimeControl "180+1"]
[EndTime "14:50:11 PST"]
[Termination "miraitrunks won by checkmate"]

1. d4 {[%clk 0:03:00.9]} 1... Nf6 {[%clk 0:02:29.3]} 2. c4 {[%clk 0:02:59.2]}
2... Nc6 {[%clk 0:02:29.5]} 3. Nc3 {[%clk 0:02:58.7]} 3... e6 {[%clk 0:02:27.4]}
4. Bg5 {[%clk 0:02:58.3]} 4... Bb4 {[%clk 0:02:22.2]} 5. e3 {[%clk 0:02:54.4]}
5... h6 {[%clk 0:02:20.6]} 6. Bh4 {[%clk 0:02:54.2]} 6... d5 {[%clk 0:02:19.4]}
7. Nf3 {[%clk 0:02:23.9]} 7... O-O {[%clk 0:02:18.8]} 8. Bd3 {[%clk 0:02:22.4]}
8... b6 {[%clk 0:02:19]} 9. O-O {[%clk 0:02:19.2]} 9... Bb7 {[%clk 0:02:19.2]}
10. cxd5 {[%clk 0:02:17.9]} 10... exd5 {[%clk 0:02:02.5]} 11. Bxf6 {[%clk
0:02:13.5]} 11... gxf6 {[%clk 0:02:03.4]} 12. Nh4 {[%clk 0:02:12.9]} 12... Ne7
{[%clk 0:02:03.2]} 13. Qg4+ {[%clk 0:02:10.8]} 13... Kh8 {[%clk 0:02:00.9]} 14.
Qh5 {[%clk 0:02:11]} 14... Kg7 {[%clk 0:01:58.1]} 15. Qg4+ {[%clk 0:02:08.5]}
15... Kh8 {[%clk 0:01:57.5]} 16. Nf5 {[%clk 0:02:07.8]} 16... Bc8 {[%clk
0:01:50.4]} 17. Qg7# {[%clk 0:02:07]} 1-0

[Event "Late-Titled-Tuesday-Blitz-January-23-2024"]
[Site "Chess.com"]
[Date "2024.01.23"]
[Round "5"]
[White "campochess"]
[Black "finec2"]
[Result "0-1"]
[WhiteElo "2086"]
[BlackElo "2198"]
[TimeControl "180+1"]
[EndTime "14:50:26 PST"]
[Termination "finec2 won by resignation"]

1. Nf3 {[%clk 0:02:59.4]} 1... Nf6 {[%clk 0:02:59.4]} 2. b3 {[%clk 0:02:59.3]}
2... g6 {[%clk 0:02:59.2]} 3. Bb2 {[%clk 0:02:59.2]} 3... Bg7 {[%clk 0:02:59.9]}
4. c4 {[%clk 0:02:58.9]} 4... O-O {[%clk 0:02:59.6]} 5. g3 {[%clk 0:02:58.9]}
5... b6 {[%clk 0:02:59.7]} 6. Bg2 {[%clk 0:02:59]} 6... Bb7 {[%clk 0:03:00.5]}
7. O-O {[%clk 0:02:59]} 7... d6 {[%clk 0:03:00.5]} 8. d3 {[%clk 0:02:59]} 8...
e5 {[%clk 0:03:00.4]} 9. Nbd2 {[%clk 0:02:58.8]} 9... Nbd7 {[%clk 0:03:00.1]}
10. e4 {[%clk 0:02:56.5]} 10... a5 {[%clk 0:02:54.8]} 11. a3 {[%clk 0:02:55.6]}
11... Nc5 {[%clk 0:02:49.2]} 12. Qc2 {[%clk 0:02:52.5]} 12... Qd7 {[%clk
0:02:47.6]} 13. Ng5 {[%clk 0:02:44.8]} 13... h6 {[%clk 0:02:43.8]} 14. Bh3
{[%clk 0:02:37.7]} 14... Qe7 {[%clk 0:02:43.9]} 15. Ngf3 {[%clk 0:02:36.7]}
15... Bc8 {[%clk 0:02:27.7]} 16. Bxc8 {[%clk 0:02:34.5]} 16... Raxc8 {[%clk
0:02:25.1]} 17. b4 {[%clk 0:02:33.9]} 17... Ne6 {[%clk 0:02:17.1]} 18. Rfc1
{[%clk 0:02:27.1]} 18... Nh5 {[%clk 0:02:06.2]} 19. Nf1 {[%clk 0:02:18]} 19...
f5 {[%clk 0:01:59.9]} 20. exf5 {[%clk 0:02:12.9]} 20... Rxf5 {[%clk 0:01:58.6]}
21. Re1 {[%clk 0:02:08.3]} 21... Rxf3 {[%clk 0:01:57.7]} 0-1

[Event "Late-Titled-Tuesday-Blitz-January-23-2024"]
[Site "Chess.com"]
[Date "2024.01.23"]
[Round "5"]
[White "Fernando_Offermann"]
[Black "JoakimVonAnd"]
[Result "0-1"]
[WhiteElo "2342"]
[BlackElo "2621"]
[TimeControl "180+1"]
[EndTime "14:50:28 PST"]
[Termination "JoakimVonAnd won by resignation"]

1. e4 {[%clk 0:02:58]} 1... c5 {[%clk 0:03:00.1]} 2. Nc3 {[%clk 0:02:56]} 2...
d6 {[%clk 0:02:59.7]} 3. Bb5+ {[%clk 0:02:51.8]} 3... Bd7 {[%clk 0:02:59.6]} 4.
Bxd7+ {[%clk 0:02:50.6]} 4... Qxd7 {[%clk 0:02:59.2]} 5. Nf3 {[%clk 0:02:49.8]}
5... Nc6 {[%clk 0:02:57.9]} 6. O-O {[%clk 0:02:49.6]} 6... Nf6 {[%clk
0:02:57.7]} 7. d4 {[%clk 0:02:49.1]} 7... cxd4 {[%clk 0:02:57.4]} 8. Nxd4 {[%clk
0:02:49.3]} 8... g6 {[%clk 0:02:57.3]} 9. Re1 {[%clk 0:02:47.4]} 9... Bg7 {[%clk
0:02:57.3]} 10. Nf3 {[%clk 0:02:44.5]} 10... O-O {[%clk 0:02:56]} 11. Bg5 {[%clk
0:02:43.7]} 11... Ng4 {[%clk 0:02:32.8]} 12. Qd2 {[%clk 0:02:40.9]} 12... Rfc8
{[%clk 0:02:31.6]} 13. Rad1 {[%clk 0:02:30.9]} 13... Nge5 {[%clk 0:02:30.3]} 14.
Nxe5 {[%clk 0:02:30.1]} 14... Nxe5 {[%clk 0:02:31.2]} 15. b3 {[%clk 0:02:28.1]}
15... Qg4 {[%clk 0:02:14.2]} 16. h3 {[%clk 0:01:45.5]} 16... Nf3+ {[%clk
0:02:04.5]} 17. Kh1 {[%clk 0:01:45.2]} 17... Qxg5 {[%clk 0:02:04.8]} 0-1

[Event "Late-Titled-Tuesday-Blitz-January-23-2024"]
[Site "Chess.com"]
[Date "2024.01.23"]
[Round "5"]
[White "traviscottofficial"]
[Black "Hirna2005"]
[Result "0-1"]
[WhiteElo "2528"]
[BlackElo "2302"]
[TimeControl "180+1"]
[EndTime "14:50:39 PST"]
[Termination "Hirna2005 won by resignation"]

1. Nc3 {[%clk 0:02:58.1]} 1... g6 {[%clk 0:03:00.5]} 2. b3 {[%clk 0:02:56.9]}
2... Bg7 {[%clk 0:03:00.7]} 3. Bb2 {[%clk 0:02:57.8]} 3... d6 {[%clk 0:03:01]}
4. d3 {[%clk 0:02:57.7]} 4... c5 {[%clk 0:03:00.7]} 5. Qd2 {[%clk 0:02:58.1]}
5... Nc6 {[%clk 0:03:00.7]} 6. e4 {[%clk 0:02:57.8]} 6... Nf6 {[%clk 0:02:55.5]}
7. g3 {[%clk 0:02:56.5]} 7... O-O {[%clk 0:02:54.5]} 8. Bg2 {[%clk 0:02:56.7]}
8... e5 {[%clk 0:02:49.9]} 9. Nge2 {[%clk 0:02:56.6]} 9... Be6 {[%clk 0:02:48]}
10. O-O {[%clk 0:02:52.4]} 10... Qd7 {[%clk 0:02:48.1]} 11. f4 {[%clk 0:02:50]}
11... Bh3 {[%clk 0:02:45.7]} 12. f5 {[%clk 0:02:48.2]} 12... Bxg2 {[%clk
0:02:45]} 13. Kxg2 {[%clk 0:02:48.5]} 13... Nd4 {[%clk 0:02:41]} 14. Nd1 {[%clk
0:02:36.9]} 14... gxf5 {[%clk 0:02:36]} 15. Nxd4 {[%clk 0:02:24]} 15... exd4
{[%clk 0:02:33]} 16. Rxf5 {[%clk 0:02:23]} 16... Ng4 {[%clk 0:02:20.3]} 17. Bc1
{[%clk 0:02:11.5]} 17... Rae8 {[%clk 0:02:13]} 18. Qe2 {[%clk 0:01:44.5]} 18...
Qxf5 {[%clk 0:02:09]} 19. exf5 {[%clk 0:01:42.9]} 19... Rxe2+ {[%clk 0:02:07.9]}
20. Kf3 {[%clk 0:01:43.6]} 20... Re1 {[%clk 0:02:03.5]} 0-1

[Event "Late-Titled-Tuesday-Blitz-January-23-2024"]
[Site "Chess.com"]
[Date "2024.01.23"]
[Round "5"]
[White "R2D2PTY"]
[Black "akanga001"]
[Result "1-0"]
[WhiteElo "2245"]
[BlackElo "1996"]
[TimeControl "180+1"]
[EndTime "14:50:41 PST"]
[Termination "R2D2PTY won by resignation"]

1. e4 {[%clk 0:03:00.9]} 1... d6 {[%clk 0:02:54]} 2. d4 {[%clk 0:03:00.4]} 2...
g6 {[%clk 0:02:53]} 3. Nc3 {[%clk 0:03:00.9]} 3... Bg7 {[%clk 0:02:53]} 4. Be3
{[%clk 0:03:01.6]} 4... b6 {[%clk 0:02:53.1]} 5. f3 {[%clk 0:03:01]} 5... c5
{[%clk 0:02:52.6]} 6. Nge2 {[%clk 0:03:00]} 6... cxd4 {[%clk 0:02:52.3]} 7. Nxd4
{[%clk 0:02:58.6]} 7... Bb7 {[%clk 0:02:52.8]} 8. Qd2 {[%clk 0:02:58.3]} 8... a6
{[%clk 0:02:49.5]} 9. h4 {[%clk 0:02:58.9]} 9... h6 {[%clk 0:02:47.3]} 10. O-O-O
{[%clk 0:02:53.8]} 10... Nc6 {[%clk 0:02:47.3]} 11. Nd5 {[%clk 0:02:51.5]} 11...
e6 {[%clk 0:02:46]} 12. Nxc6 {[%clk 0:02:49.6]} 12... Bxc6 {[%clk 0:02:44.8]}
13. Bxb6 {[%clk 0:02:47.3]} 13... Qb8 {[%clk 0:02:33.7]} 14. Nc7+ {[%clk
0:02:47.4]} 14... Kf8 {[%clk 0:02:33.6]} 15. Qxd6+ {[%clk 0:02:25.9]} 15... Ne7
{[%clk 0:02:33.2]} 16. Nxa8 {[%clk 0:02:24.8]} 16... Qxa8 {[%clk 0:02:33.3]} 17.
Qd8+ {[%clk 0:02:24.2]} 17... Qxd8 {[%clk 0:02:29.2]} 18. Rxd8+ {[%clk
0:02:23.6]} 18... Be8 {[%clk 0:02:30.1]} 19. Bxa6 {[%clk 0:02:10.2]} 19... Be5
{[%clk 0:02:29.5]} 20. Bb5 {[%clk 0:02:02.3]} 20... Kg7 {[%clk 0:02:28.6]} 21.
Rxe8 {[%clk 0:02:00.4]} 21... Bf4+ {[%clk 0:02:26.7]} 22. Kb1 {[%clk 0:02:00.2]}
22... Rxe8 {[%clk 0:02:23.8]} 23. Bxe8 {[%clk 0:02:01.1]} 23... f5 {[%clk
0:02:21.3]} 24. a4 {[%clk 0:01:59.8]} 24... fxe4 {[%clk 0:02:19.6]} 25. fxe4
{[%clk 0:02:00.3]} 25... g5 {[%clk 0:02:18.5]} 26. a5 {[%clk 0:02:00]} 26... Nc8
{[%clk 0:02:14.8]} 27. Bd7 {[%clk 0:01:57.1]} 27... Nd6 {[%clk 0:02:12.7]} 28.
Bxe6 {[%clk 0:01:55.4]} 28... Kf6 {[%clk 0:02:11.6]} 29. Bd5 {[%clk 0:01:55.3]}
29... Nc8 {[%clk 0:02:09.6]} 30. Bd4+ {[%clk 0:01:54.6]} 30... Ke7 {[%clk
0:02:08.3]} 31. a6 {[%clk 0:01:54.7]} 1-0

[Event "Late-Titled-Tuesday-Blitz-January-23-2024"]
[Site "Chess.com"]
[Date "2024.01.23"]
[Round "5"]
[White "The_Straightforward_Rook"]
[Black "kai_nov"]
[Result "1-0"]
[WhiteElo "2468"]
[BlackElo "2293"]
[TimeControl "180+1"]
[EndTime "14:51:27 PST"]
[Termination "The_Straightforward_Rook won by resignation"]

1. e4 {[%clk 0:02:57.9]} 1... c5 {[%clk 0:02:59.1]} 2. c3 {[%clk 0:02:57.8]}
2... Nf6 {[%clk 0:02:57.9]} 3. e5 {[%clk 0:02:57.8]} 3... Nd5 {[%clk 0:02:58.2]}
4. Nf3 {[%clk 0:02:58.7]} 4... Nc6 {[%clk 0:02:55.6]} 5. Bc4 {[%clk 0:02:58.9]}
5... Nb6 {[%clk 0:02:55.2]} 6. Bb3 {[%clk 0:02:59.4]} 6... d5 {[%clk 0:02:55.2]}
7. exd6 {[%clk 0:02:59.3]} 7... Qxd6 {[%clk 0:02:53.4]} 8. Na3 {[%clk
0:02:55.6]} 8... a6 {[%clk 0:02:25]} 9. O-O {[%clk 0:02:55]} 9... Bf5 {[%clk
0:02:21.1]} 10. d4 {[%clk 0:02:51.8]} 10... cxd4 {[%clk 0:02:14.6]} 11. Nxd4
{[%clk 0:02:52.7]} 11... Nxd4 {[%clk 0:02:06.8]} 12. cxd4 {[%clk 0:02:53.6]}
12... e6 {[%clk 0:02:07.1]} 13. Qf3 {[%clk 0:02:52]} 13... Qd7 {[%clk
0:02:00.4]} 14. h4 {[%clk 0:02:45.4]} 14... Be7 {[%clk 0:01:47.7]} 15. g4 {[%clk
0:02:42.3]} 15... O-O {[%clk 0:01:18.6]} 16. gxf5 {[%clk 0:02:42.3]} 16... exf5
{[%clk 0:01:19.5]} 17. h5 {[%clk 0:02:25.2]} 17... Qxd4 {[%clk 0:01:07.5]} 18.
Be3 {[%clk 0:02:24.2]} 18... Qxb2 {[%clk 0:01:03.8]} 19. Bxb6 {[%clk 0:02:18.4]}
19... Qxa3 {[%clk 0:01:00.3]} 20. h6 {[%clk 0:02:18.4]} 20... Bf6 {[%clk
0:00:48.7]} 21. Bxf7+ {[%clk 0:02:16.7]} 21... Rxf7 {[%clk 0:00:44.2]} 22. Qxa3
{[%clk 0:02:16.7]} 1-0

[Event "Late-Titled-Tuesday-Blitz-January-23-2024"]
[Site "Chess.com"]
[Date "2024.01.23"]
[Round "5"]
[White "Nor1lsk"]
[Black "Hrant_ChessMood"]
[Result "0-1"]
[WhiteElo "2702"]
[BlackElo "2916"]
[TimeControl "180+1"]
[EndTime "14:51:39 PST"]
[Termination "Hrant_ChessMood won by resignation"]

1. e4 {[%clk 0:02:56.1]} 1... c6 {[%clk 0:03:00.4]} 2. d4 {[%clk 0:02:40.6]}
2... d5 {[%clk 0:03:00.2]} 3. f3 {[%clk 0:02:40.6]} 3... e6 {[%clk 0:02:59.4]}
4. Be3 {[%clk 0:02:40]} 4... b6 {[%clk 0:02:54.3]} 5. Bd3 {[%clk 0:02:33.6]}
5... Ba6 {[%clk 0:02:54.6]} 6. Ne2 {[%clk 0:02:33.3]} 6... Bxd3 {[%clk
0:02:49.4]} 7. Qxd3 {[%clk 0:02:33.1]} 7... Qc8 {[%clk 0:02:47.9]} 8. Nbc3
{[%clk 0:02:32.2]} 8... Qa6 {[%clk 0:02:47.7]} 9. Qd2 {[%clk 0:02:31.8]} 9...
Nd7 {[%clk 0:02:45.4]} 10. O-O {[%clk 0:02:31.4]} 10... Be7 {[%clk 0:02:39.5]}
11. Rae1 {[%clk 0:02:26.1]} 11... Ngf6 {[%clk 0:02:34]} 12. e5 {[%clk
0:02:24.1]} 12... Ng8 {[%clk 0:02:33.6]} 13. f4 {[%clk 0:02:24.7]} 13... g6
{[%clk 0:02:34]} 14. g4 {[%clk 0:02:25]} 14... h5 {[%clk 0:02:23.2]} 15. h3
{[%clk 0:02:16.5]} 15... hxg4 {[%clk 0:02:23.3]} 16. hxg4 {[%clk 0:02:17.4]}
16... Nh6 {[%clk 0:02:23.9]} 17. f5 {[%clk 0:02:14.1]} 17... Nxg4 {[%clk
0:02:20.6]} 18. fxe6 {[%clk 0:02:09.2]} 18... fxe6 {[%clk 0:02:20.6]} 19. Bg5
{[%clk 0:02:09.7]} 19... Rh5 {[%clk 0:01:48.4]} 20. Bxe7 {[%clk 0:02:03.9]}
20... Kxe7 {[%clk 0:01:49.3]} 21. Nf4 {[%clk 0:02:03.5]} 21... Rg8 {[%clk
0:01:48.4]} 22. Nxh5 {[%clk 0:01:58.2]} 22... gxh5 {[%clk 0:01:49.3]} 23. Kh1
{[%clk 0:01:57.1]} 23... Qc8 {[%clk 0:01:46.9]} 24. Qf4 {[%clk 0:01:50.6]} 24...
Qe8 {[%clk 0:01:44.2]} 25. Nd1 {[%clk 0:01:43.5]} 25... Qg6 {[%clk 0:01:43.6]}
26. Re2 {[%clk 0:01:38.3]} 26... Rf8 {[%clk 0:01:35]} 0-1

[Event "Late-Titled-Tuesday-Blitz-January-23-2024"]
[Site "Chess.com"]
[Date "2024.01.23"]
[Round "5"]
[White "AlexPapasimakopoulos"]
[Black "jefferyx"]
[Result "1/2-1/2"]
[WhiteElo "2760"]
[BlackElo "2991"]
[TimeControl "180+1"]
[EndTime "14:51:48 PST"]
[Termination "Game drawn by agreement"]

1. d4 {[%clk 0:03:00.9]} 1... d5 {[%clk 0:03:00.3]} 2. c4 {[%clk 0:02:59.8]}
2... e6 {[%clk 0:03:00.7]} 3. Nc3 {[%clk 0:02:59.7]} 3... Nf6 {[%clk 0:03:00.8]}
4. cxd5 {[%clk 0:03:00.1]} 4... exd5 {[%clk 0:03:01.7]} 5. Bg5 {[%clk
0:03:00.2]} 5... c6 {[%clk 0:03:02.4]} 6. e3 {[%clk 0:03:00.7]} 6... Bd6 {[%clk
0:03:03]} 7. Bd3 {[%clk 0:03:01.1]} 7... O-O {[%clk 0:03:03.6]} 8. Qc2 {[%clk
0:03:01.3]} 8... h6 {[%clk 0:03:04.1]} 9. Bh4 {[%clk 0:03:01.9]} 9... Re8 {[%clk
0:03:04]} 10. Nf3 {[%clk 0:03:01.1]} 10... Be6 {[%clk 0:02:58.6]} 11. Bg3 {[%clk
0:02:58.5]} 11... Bxg3 {[%clk 0:02:39.8]} 12. hxg3 {[%clk 0:02:57.1]} 12... Qd6
{[%clk 0:02:40.7]} 13. O-O {[%clk 0:02:53.8]} 13... Nbd7 {[%clk 0:02:40.9]} 14.
Rab1 {[%clk 0:02:54.3]} 14... a5 {[%clk 0:02:40.7]} 15. a3 {[%clk 0:02:54.4]}
15... Rec8 {[%clk 0:02:32.3]} 16. Rfe1 {[%clk 0:02:54.2]} 16... b5 {[%clk
0:02:27.8]} 17. e4 {[%clk 0:02:53]} 17... dxe4 {[%clk 0:02:27.9]} 18. Nxe4
{[%clk 0:02:53.2]} 18... Nxe4 {[%clk 0:02:28.2]} 19. Bxe4 {[%clk 0:02:54.1]}
19... Nf6 {[%clk 0:02:28.5]} 20. Bf5 {[%clk 0:02:52.1]} 20... Bxf5 {[%clk
0:02:22.9]} 21. Qxf5 {[%clk 0:02:51.3]} 21... Re8 {[%clk 0:02:23.5]} 22. Re5
{[%clk 0:02:50.1]} 22... a4 {[%clk 0:02:13.4]} 23. Rbe1 {[%clk 0:02:43.8]} 23...
Rf8 {[%clk 0:01:52.3]} 24. Re7 {[%clk 0:02:36.7]} 24... b4 {[%clk 0:01:51.1]}
25. axb4 {[%clk 0:02:32.1]} 25... Qxb4 {[%clk 0:01:50.8]} 26. Qc2 {[%clk
0:02:27.7]} 26... Rac8 {[%clk 0:01:38.7]} 27. Ra7 {[%clk 0:02:24.3]} 27... c5
{[%clk 0:01:36.5]} 28. Rxa4 {[%clk 0:02:19.2]} 28... Qb6 {[%clk 0:01:34.5]} 29.
dxc5 {[%clk 0:02:12.7]} 29... Rxc5 {[%clk 0:01:34.3]} 30. Qd2 {[%clk 0:02:08]}
30... Rb5 {[%clk 0:01:33.6]} 31. Ra2 {[%clk 0:02:05]} 31... Rb8 {[%clk
0:01:30.8]} 32. Qd4 {[%clk 0:01:44.8]} 32... Qxd4 {[%clk 0:01:28.9]} 33. Nxd4
{[%clk 0:01:45.7]} 33... Rxb2 {[%clk 0:01:29.2]} 34. Rxb2 {[%clk 0:01:46.5]}
34... Rxb2 {[%clk 0:01:29.5]} 35. f3 {[%clk 0:01:47.2]} 35... Nh5 {[%clk
0:01:28]} 36. Kh2 {[%clk 0:01:45.3]} 36... g6 {[%clk 0:01:27.6]} 37. Re2 {[%clk
0:01:43.9]} 37... Rxe2 {[%clk 0:01:25.4]} 38. Nxe2 {[%clk 0:01:44.8]} 38... Ng7
{[%clk 0:01:25.6]} 1/2-1/2

[Event "Late-Titled-Tuesday-Blitz-January-23-2024"]
[Site "Chess.com"]
[Date "2024.01.23"]
[Round "5"]
[White "szachmistrz2500"]
[Black "CarlosjPineror"]
[Result "0-1"]
[WhiteElo "2501"]
[BlackElo "2613"]
[TimeControl "180+1"]
[EndTime "14:52:08 PST"]
[Termination "CarlosjPineror won by checkmate"]

1. e4 {[%clk 0:03:00.4]} 1... c5 {[%clk 0:02:59.7]} 2. Nf3 {[%clk 0:02:59.7]}
2... e6 {[%clk 0:02:59.9]} 3. d4 {[%clk 0:02:59.5]} 3... cxd4 {[%clk 0:03:00.8]}
4. Nxd4 {[%clk 0:02:59.8]} 4... a6 {[%clk 0:03:01.5]} 5. Bd3 {[%clk 0:02:58.9]}
5... Qc7 {[%clk 0:03:02.1]} 6. Qe2 {[%clk 0:02:58.3]} 6... Nf6 {[%clk
0:03:02.4]} 7. O-O {[%clk 0:02:57.2]} 7... h5 {[%clk 0:03:02.1]} 8. c4 {[%clk
0:02:43.7]} 8... Ng4 {[%clk 0:03:00.6]} 9. g3 {[%clk 0:02:39]} 9... Bc5 {[%clk
0:02:59.8]} 10. Nb3 {[%clk 0:02:34.1]} 10... Ba7 {[%clk 0:02:59.8]} 11. Nc3
{[%clk 0:02:29.8]} 11... Nc6 {[%clk 0:02:59.2]} 12. Bf4 {[%clk 0:02:21]} 12...
Nce5 {[%clk 0:02:49.4]} 13. Rac1 {[%clk 0:01:50.6]} 13... f6 {[%clk 0:02:33.1]}
14. c5 {[%clk 0:01:46.1]} 14... g5 {[%clk 0:02:32.4]} 15. Be3 {[%clk 0:01:35.8]}
15... Nxe3 {[%clk 0:02:28.8]} 16. Qxe3 {[%clk 0:01:34.4]} 16... b5 {[%clk
0:02:26.5]} 17. a3 {[%clk 0:01:20.4]} 17... d6 {[%clk 0:02:21.4]} 18. Bxb5+
{[%clk 0:01:14.2]} 18... Kf7 {[%clk 0:02:14]} 19. Be2 {[%clk 0:01:09.4]} 19...
dxc5 {[%clk 0:02:12.3]} 20. Qd2 {[%clk 0:00:37.5]} 20... c4 {[%clk 0:02:06.8]}
21. Na1 {[%clk 0:00:33.8]} 21... Bb7 {[%clk 0:02:03]} 22. Nc2 {[%clk 0:00:32.1]}
22... Rad8 {[%clk 0:02:03.4]} 23. Qe1 {[%clk 0:00:31.6]} 23... h4 {[%clk
0:01:58.2]} 24. Rd1 {[%clk 0:00:28.8]} 24... hxg3 {[%clk 0:01:57.5]} 25. hxg3
{[%clk 0:00:29]} 25... Nd3 {[%clk 0:01:55.5]} 26. Bxd3 {[%clk 0:00:27.1]} 26...
Qxg3# {[%clk 0:01:55.4]} 0-1

[Event "Late-Titled-Tuesday-Blitz-January-23-2024"]
[Site "Chess.com"]
[Date "2024.01.23"]
[Round "5"]
[White "Jospem"]
[Black "Mikhail_Bryakin"]
[Result "1-0"]
[WhiteElo "3090"]
[BlackElo "2829"]
[TimeControl "180+1"]
[EndTime "14:52:19 PST"]
[Termination "Jospem won by resignation"]

1. e4 {[%clk 0:03:00.9]} 1... e6 {[%clk 0:02:58.4]} 2. d4 {[%clk 0:03:01.1]}
2... b6 {[%clk 0:02:58.9]} 3. Nf3 {[%clk 0:03:02]} 3... Bb7 {[%clk 0:02:59.5]}
4. Bd3 {[%clk 0:03:02.4]} 4... c5 {[%clk 0:02:56.8]} 5. c3 {[%clk 0:03:02.1]}
5... d5 {[%clk 0:02:53.8]} 6. e5 {[%clk 0:02:48]} 6... Nc6 {[%clk 0:02:53.6]} 7.
O-O {[%clk 0:02:48.1]} 7... h6 {[%clk 0:02:53.7]} 8. Be3 {[%clk 0:02:48.4]} 8...
c4 {[%clk 0:02:52.4]} 9. Bc2 {[%clk 0:02:48.3]} 9... b5 {[%clk 0:02:53.3]} 10.
Ne1 {[%clk 0:02:46.8]} 10... g6 {[%clk 0:02:52.3]} 11. Nd2 {[%clk 0:02:44.5]}
11... h5 {[%clk 0:02:52.5]} 12. g3 {[%clk 0:02:44.3]} 12... Nh6 {[%clk
0:02:51.9]} 13. Ng2 {[%clk 0:02:43.6]} 13... Be7 {[%clk 0:02:51.9]} 14. a3
{[%clk 0:02:40.8]} 14... Nf5 {[%clk 0:02:51.9]} 15. Nf3 {[%clk 0:02:39.7]} 15...
Kd7 {[%clk 0:02:50.9]} 16. Qd2 {[%clk 0:02:39.9]} 16... Qg8 {[%clk 0:02:48.9]}
17. Bg5 {[%clk 0:02:39.9]} 17... a6 {[%clk 0:02:42.2]} 18. h3 {[%clk 0:02:39]}
18... Qd8 {[%clk 0:02:36.2]} 19. Qf4 {[%clk 0:02:37.3]} 19... Rh7 {[%clk
0:02:33.7]} 20. g4 {[%clk 0:02:28]} 20... hxg4 {[%clk 0:02:31.1]} 21. hxg4
{[%clk 0:02:28.9]} 21... Bxg5 {[%clk 0:02:18.3]} 22. Nxg5 {[%clk 0:02:25.6]}
22... Rg7 {[%clk 0:02:18.3]} 23. Nf3 {[%clk 0:01:56.7]} 23... Nfe7 {[%clk
0:02:15.5]} 24. Qg5 {[%clk 0:01:49.7]} 24... Nc8 {[%clk 0:02:09.9]} 25. Nf4
{[%clk 0:01:48]} 25... Nb6 {[%clk 0:02:01.4]} 26. Kg2 {[%clk 0:01:47.5]} 26...
Qe7 {[%clk 0:02:01.2]} 27. Rh1 {[%clk 0:01:47.5]} 27... a5 {[%clk 0:02:01.7]}
28. Qf6 {[%clk 0:01:45.4]} 28... Rag8 {[%clk 0:01:58.5]} 29. Ng5 {[%clk
0:01:42.6]} 29... b4 {[%clk 0:01:56]} 30. axb4 {[%clk 0:01:40.4]} 30... axb4
{[%clk 0:01:56.9]} 31. Ba4 {[%clk 0:01:37.7]} 31... Nxa4 {[%clk 0:01:55.4]} 32.
Rxa4 {[%clk 0:01:38.6]} 32... b3 {[%clk 0:01:54]} 33. Kg3 {[%clk 0:01:31.7]}
33... Kc8 {[%clk 0:01:52.1]} 34. Rha1 {[%clk 0:01:23.9]} 34... Kb8 {[%clk
0:01:52]} 35. Ra5 {[%clk 0:01:00.8]} 35... Nxa5 {[%clk 0:01:44.2]} 36. Qxe7
{[%clk 0:00:59.8]} 1-0